[Event "Titled Tuesday Blitz April 18 Early 2023"]
[White "Janaszak, Dawid"]
[Black "mrithyunjay"]
[WhiteFideId "1119206"]
[WhiteElo "2220"]
[BlackElo "2169"]
[Result "1-0"]
[Round "01"]
[TimeControl "180+2"]
[Date "2023.04.18"]
[WhiteClock "0:01:17"]
[BlackClock "0:00:09"]

1. e4 {[%clk 0:03:00]}  c5 {[%clk 0:02:59]} 2. Nc3 {[%clk 0:02:59]}  d6 {[%clk 0:02:59]} 3. f4 {[%clk 0:02:59]}  g6 {[%clk 0:02:58]} 4. Nf3 {[%clk 0:02:59]}  Bg7 {[%clk 0:02:59]} 5. Bc4 {[%clk 0:03:00]}  Nc6 {[%clk 0:02:58]} 6. O-O {[%clk 0:03:00]}  e6 {[%clk 0:02:58]} 7. d4 {[%clk 0:03:00]}  cxd4 {[%clk 0:02:57]} 8. Nb5 {[%clk 0:03:00]}  Nge7 {[%clk 0:02:57]} 9. Bb3 {[%clk 0:03:00]}  O-O {[%clk 0:02:55]} 10. Nbxd4 {[%clk 0:03:00]}  Nxd4 {[%clk 0:02:53]} 11. Nxd4 {[%clk 0:03:01]}  Nc6 {[%clk 0:02:53]} 12. c3 {[%clk 0:02:53]}  Bd7 {[%clk 0:02:48]} 13. Be3 {[%clk 0:02:48]}  a6 {[%clk 0:02:38]} 14. f5 {[%clk 0:02:42]}  exf5 {[%clk 0:02:35]} 15. exf5 {[%clk 0:02:42]}  Nxd4 {[%clk 0:02:36]} 16. Bxd4 {[%clk 0:02:43]}  Bxf5 {[%clk 0:02:36]} 17. Bxg7 {[%clk 0:02:33]}  Kxg7 {[%clk 0:02:37]} 18. Qd4+ {[%clk 0:02:33]}  Qf6 {[%clk 0:02:36]} 19. Qxf6+ {[%clk 0:02:32]}  Kxf6 {[%clk 0:02:35]} 20. g4 {[%clk 0:02:33]}  Rfe8 {[%clk 0:02:32]} 21. gxf5 {[%clk 0:02:32]}  gxf5 {[%clk 0:02:33]} 22. Rad1 {[%clk 0:02:31]}  Re2 {[%clk 0:02:30]} 23. Rf2 {[%clk 0:02:20]}  Rg8+ {[%clk 0:02:28]} 24. Kf1 {[%clk 0:02:20]}  Rxf2+ {[%clk 0:02:23]} 25. Kxf2 {[%clk 0:02:21]}  Ke5 {[%clk 0:02:22]} 26. Bxf7 {[%clk 0:02:14]}  Rf8 {[%clk 0:02:20]} 27. Bb3 {[%clk 0:02:09]}  Rf6 {[%clk 0:02:17]} 28. Kf3 {[%clk 0:02:07]}  Rh6 {[%clk 0:02:11]} 29. Rd5+ {[%clk 0:02:07]}  Ke6 {[%clk 0:02:11]} 30. h4 {[%clk 0:01:55]}  Kd7 {[%clk 0:02:05]} 31. Rd4 {[%clk 0:01:48]}  b5 {[%clk 0:02:01]} 32. Bc2 {[%clk 0:01:45]}  Rh5 {[%clk 0:02:00]} 33. a4 {[%clk 0:01:41]}  bxa4 {[%clk 0:02:00]} 34. Rxa4 {[%clk 0:01:42]}  Ke6 {[%clk 0:01:58]} 35. Kg3 {[%clk 0:01:38]}  Ke5 {[%clk 0:01:57]} 36. Ra5+ {[%clk 0:01:36]}  Ke6 {[%clk 0:01:57]} 37. Rxa6 {[%clk 0:01:33]}  Ke5 {[%clk 0:01:55]} 38. Ra5+ {[%clk 0:01:32]}  Ke6 {[%clk 0:00:12]} 39. b4 {[%clk 0:01:30]}  f4+ {[%clk 0:00:09]} 40. Kg4 {[%clk 0:01:30]}  Re5 {[%clk 0:00:09]} 41. Kxf4 {[%clk 0:01:23]}  Re2 {[%clk 0:00:08]} 42. Bxh7 {[%clk 0:01:20]}  Rf2+ {[%clk 0:00:07]} 43. Ke3 {[%clk 0:01:18]}  Rc2 {[%clk 0:00:05]} 44. Bxc2 {[%clk 0:01:18]}  d5 {[%clk 0:00:04]} 45. h5 {[%clk 0:01:17]}  Kf6 {[%clk 0:00:05]} 46. Rxd5 {[%clk 0:01:17]}  Kf7 {[%clk 0:00:05]} 47. b5 {[%clk 0:01:17]}  Kg7 {[%clk 0:00:06]} 48. b6 {[%clk 0:01:18]}  Kh6 {[%clk 0:00:07]} 49. c4 {[%clk 0:01:17]}  Kg7 {[%clk 0:00:08]} 50. b7 {[%clk 0:01:17]}  Kh6 {[%clk 0:00:08]} 51. b8=Q {[%clk 0:01:17]}  Kg7 {[%clk 0:00:09]} 52. Qe5+ {[%clk 0:01:17]}  Kh6 {[%clk 0:00:09]} 53. Rd6# {[%clk 0:01:17]} 1-0


[Site "https://www.chess.com"]

[Event "Titled Tuesday Blitz April 18 Early 2023"]
[White "dDobravcan"]
[Black "Moksh Amit Doshi"]
[BlackFideId "25064967"]
[WhiteElo "2161"]
[BlackElo "2297"]
[Result "0-1"]
[Round "01"]
[TimeControl "180+2"]
[Date "2023.04.18"]
[WhiteClock "0:00:10"]
[BlackClock "0:01:09"]

1. d4 {[%clk 0:02:59]}  Nf6 {[%clk 0:02:25]} 2. Nc3 {[%clk 0:02:58]}  d5 {[%clk 0:02:21]} 3. Bf4 {[%clk 0:02:56]}  c5 {[%clk 0:02:21]} 4. e3 {[%clk 0:02:54]}  cxd4 {[%clk 0:02:21]} 5. exd4 {[%clk 0:02:50]}  a6 {[%clk 0:02:21]} 6. Bd3 {[%clk 0:02:43]}  Nc6 {[%clk 0:02:20]} 7. Nf3 {[%clk 0:02:39]}  Bg4 {[%clk 0:02:20]} 8. Be2 {[%clk 0:02:06]}  e6 {[%clk 0:02:18]} 9. h3 {[%clk 0:02:05]}  Bh5 {[%clk 0:02:16]} 10. a3 {[%clk 0:02:05]}  Bd6 {[%clk 0:02:15]} 11. Qd2 {[%clk 0:01:53]}  O-O {[%clk 0:02:11]} 12. O-O-O {[%clk 0:01:48]}  b5 {[%clk 0:02:00]} 13. Ne5 {[%clk 0:01:40]}  b4 {[%clk 0:01:58]} 14. Nxc6 {[%clk 0:01:31]}  bxc3 {[%clk 0:01:51]} 15. Qe3 {[%clk 0:01:20]}  Bxf4 {[%clk 0:01:42]} 16. Qxf4 {[%clk 0:01:19]}  Qb6 {[%clk 0:01:41]} 17. Nb4 {[%clk 0:01:04]}  Bxe2 {[%clk 0:01:36]} 18. Rde1 {[%clk 0:00:52]}  cxb2+ {[%clk 0:01:33]} 19. Kb1 {[%clk 0:00:50]}  a5 {[%clk 0:01:29]} 20. Na2 {[%clk 0:00:47]}  Bc4 {[%clk 0:01:27]} 21. Nc3 {[%clk 0:00:48]}  Rac8 {[%clk 0:01:22]} 22. Re3 {[%clk 0:00:46]}  Qc7 {[%clk 0:01:16]} 23. Qg5 {[%clk 0:00:39]}  Qd6 {[%clk 0:01:16]} 24. Rg3 {[%clk 0:00:35]}  Ne8 {[%clk 0:01:15]} 25. Nd1 {[%clk 0:00:28]}  Rb8 {[%clk 0:01:13]} 26. Nxb2 {[%clk 0:00:20]}  Qb6 {[%clk 0:01:11]} 27. Qc1 {[%clk 0:00:17]}  Qxd4 {[%clk 0:01:11]} 28. Rd1 {[%clk 0:00:15]}  Rxb2+ {[%clk 0:01:09]} 29. Qxb2 {[%clk 0:00:11]}  Qxd1+ {[%clk 0:01:09]} 30. Qc1 {[%clk 0:00:10]}  Qxc1+ {[%clk 0:01:09]} 0-1


[Site "https://www.chess.com"]

[Event "Titled Tuesday Blitz April 18 Early 2023"]
[White "Gontcharov, Vladislav"]
[Black "hsd2016"]
[WhiteFideId "4123492"]
[WhiteElo "2420"]
[BlackElo "2160"]
[Result "1-0"]
[Round "01"]
[TimeControl "180+2"]
[Date "2023.04.18"]
[WhiteClock "0:00:02"]
[BlackClock "0:00:08"]

1. d4 {[%clk 0:02:59]}  Nf6 {[%clk 0:03:00]} 2. c4 {[%clk 0:02:59]}  c5 {[%clk 0:03:00]} 3. d5 {[%clk 0:02:54]}  b5 {[%clk 0:02:59]} 4. cxb5 {[%clk 0:02:54]}  a6 {[%clk 0:02:59]} 5. b6 {[%clk 0:02:52]}  e6 {[%clk 0:02:59]} 6. Nc3 {[%clk 0:02:52]}  Qxb6 {[%clk 0:02:58]} 7. e4 {[%clk 0:02:50]}  exd5 {[%clk 0:02:56]} 8. exd5 {[%clk 0:02:49]}  d6 {[%clk 0:02:55]} 9. h3 {[%clk 0:02:41]}  Be7 {[%clk 0:02:54]} 10. Nf3 {[%clk 0:02:41]}  O-O {[%clk 0:02:53]} 11. Bd3 {[%clk 0:02:40]}  Re8 {[%clk 0:02:45]} 12. O-O {[%clk 0:02:40]}  h6 {[%clk 0:02:44]} 13. Qc2 {[%clk 0:02:27]}  Bb7 {[%clk 0:02:38]} 14. Rd1 {[%clk 0:02:23]}  Nbd7 {[%clk 0:02:33]} 15. Bf4 {[%clk 0:02:19]}  Qc7 {[%clk 0:02:32]} 16. Rac1 {[%clk 0:02:17]}  Rac8 {[%clk 0:02:29]} 17. Bc4 {[%clk 0:02:11]}  Nb6 {[%clk 0:02:25]} 18. b3 {[%clk 0:02:11]}  Qd7 {[%clk 0:02:19]} 19. Qd3 {[%clk 0:01:56]}  Ra8 {[%clk 0:02:03]} 20. Bh2 {[%clk 0:01:33]}  Nh7 {[%clk 0:01:45]} 21. Rc2 {[%clk 0:01:09]}  Ng5 {[%clk 0:01:27]} 22. Nd2 {[%clk 0:01:01]}  Nh7 {[%clk 0:00:57]} 23. Nde4 {[%clk 0:00:59]}  Nf6 {[%clk 0:00:56]} 24. Ng3 {[%clk 0:00:56]}  Bc8 {[%clk 0:00:52]} 25. Re2 {[%clk 0:00:52]}  Ra7 {[%clk 0:00:51]} 26. Rde1 {[%clk 0:00:51]}  Nxc4 {[%clk 0:00:48]} 27. bxc4 {[%clk 0:00:41]}  Bf8 {[%clk 0:00:41]} 28. Rxe8 {[%clk 0:00:39]}  Nxe8 {[%clk 0:00:42]} 29. Nge4 {[%clk 0:00:39]}  Qd8 {[%clk 0:00:40]} 30. g4 {[%clk 0:00:33]}  Re7 {[%clk 0:00:38]} 31. Re2 {[%clk 0:00:33]}  f5 {[%clk 0:00:36]} 32. gxf5 {[%clk 0:00:31]}  Bxf5 {[%clk 0:00:37]} 33. Qf3 {[%clk 0:00:31]}  Rf7 {[%clk 0:00:31]} 34. Qg3 {[%clk 0:00:18]}  Qd7 {[%clk 0:00:20]} 35. h4 {[%clk 0:00:18]}  Bg4 {[%clk 0:00:18]} 36. Re3 {[%clk 0:00:18]}  h5 {[%clk 0:00:18]} 37. Ng5 {[%clk 0:00:18]}  Re7 {[%clk 0:00:17]} 38. Nce4 {[%clk 0:00:17]}  Re5 {[%clk 0:00:16]} 39. Nxc5 {[%clk 0:00:15]}  Rxe3 {[%clk 0:00:14]} 40. Nxd7 {[%clk 0:00:11]}  Rxg3+ {[%clk 0:00:14]} 41. Bxg3 {[%clk 0:00:11]}  Be7 {[%clk 0:00:14]} 42. Nb8 {[%clk 0:00:10]}  Be2 {[%clk 0:00:13]} 43. Nc6 {[%clk 0:00:09]}  Bxg5 {[%clk 0:00:13]} 44. hxg5 {[%clk 0:00:07]}  Bxc4 {[%clk 0:00:13]} 45. f3 {[%clk 0:00:07]}  Bxd5 {[%clk 0:00:13]} 46. Ne7+ {[%clk 0:00:07]}  Kf7 {[%clk 0:00:14]} 47. Nxd5 {[%clk 0:00:08]}  Ke6 {[%clk 0:00:14]} 48. Ne3 {[%clk 0:00:08]}  d5 {[%clk 0:00:14]} 49. f4 {[%clk 0:00:08]}  d4 {[%clk 0:00:15]} 50. Ng2 {[%clk 0:00:08]}  Nd6 {[%clk 0:00:15]} 51. Kf2 {[%clk 0:00:08]}  Ne4+ {[%clk 0:00:15]} 52. Kf3 {[%clk 0:00:09]}  Kd5 {[%clk 0:00:11]} 53. Be1 {[%clk 0:00:09]}  g6 {[%clk 0:00:10]} 54. Nh4 {[%clk 0:00:09]}  Nc5 {[%clk 0:00:09]} 55. Nxg6 {[%clk 0:00:08]}  Kc4 {[%clk 0:00:10]} 56. f5 {[%clk 0:00:07]}  d3 {[%clk 0:00:09]} 57. f6 {[%clk 0:00:07]}  Ne6 {[%clk 0:00:09]} 58. Ne5+ {[%clk 0:00:02]}  Kd4 {[%clk 0:00:09]} 59. Nxd3 {[%clk 0:00:02]}  Kxd3 {[%clk 0:00:09]} 60. g6 {[%clk 0:00:02]}  h4 {[%clk 0:00:09]} 61. g7 {[%clk 0:00:02]}  Ng5+ {[%clk 0:00:07]} 62. Kg4 {[%clk 0:00:02]}  Ne4 {[%clk 0:00:08]} 63. Bxh4 {[%clk 0:00:02]} 1-0


[Site "https://www.chess.com"]

[Event "Titled Tuesday Blitz April 18 Early 2023"]
[White "benny_aizenberg"]
[Black "Vargas Rodriguez, Wilver"]
[BlackFideId "3509672"]
[WhiteElo "2555"]
[BlackElo "2224"]
[Result "1-0"]
[Round "01"]
[TimeControl "180+2"]
[Date "2023.04.18"]
[WhiteClock "0:00:05"]
[BlackClock "0:00:02"]

1. d4 {[%clk 0:02:58]}  Nf6 {[%clk 0:02:59]} 2. Bf4 {[%clk 0:02:58]}  d6 {[%clk 0:02:57]} 3. Nc3 {[%clk 0:02:55]}  g6 {[%clk 0:02:55]} 4. e4 {[%clk 0:02:55]}  Nc6 {[%clk 0:02:54]} 5. Nf3 {[%clk 0:02:53]}  Bg7 {[%clk 0:02:50]} 6. d5 {[%clk 0:02:52]}  Nb8 {[%clk 0:02:49]} 7. Qd2 {[%clk 0:02:53]}  h5 {[%clk 0:02:49]} 8. O-O-O {[%clk 0:02:51]}  c6 {[%clk 0:02:42]} 9. e5 {[%clk 0:02:27]}  dxe5 {[%clk 0:02:41]} 10. Nxe5 {[%clk 0:02:26]}  cxd5 {[%clk 0:02:40]} 11. Bb5+ {[%clk 0:02:24]}  Kf8 {[%clk 0:02:32]} 12. Nxd5 {[%clk 0:02:10]}  Qxd5 {[%clk 0:02:19]} 13. Qc3 {[%clk 0:01:47]}  Qxb5 {[%clk 0:02:10]} 14. Qxc8+ {[%clk 0:01:46]}  Ne8 {[%clk 0:02:09]} 15. Rhe1 {[%clk 0:01:32]}  Nc6 {[%clk 0:01:21]} 16. Qxa8 {[%clk 0:01:10]}  Nxe5 {[%clk 0:01:21]} 17. b3 {[%clk 0:00:41]}  Nc4 {[%clk 0:00:11]} 18. Qd8 {[%clk 0:00:21]}  Bb2+ {[%clk 0:00:09]} 19. Kb1 {[%clk 0:00:21]}  Bc3 {[%clk 0:00:08]} 20. Qxe7+ {[%clk 0:00:18]}  Kg8 {[%clk 0:00:08]} 21. Qxe8+ {[%clk 0:00:18]}  Kh7 {[%clk 0:00:05]} 22. Qxb5 {[%clk 0:00:15]}  Na3+ {[%clk 0:00:04]} 23. Kc1 {[%clk 0:00:16]}  Nxb5 {[%clk 0:00:05]} 24. Re7 {[%clk 0:00:16]}  Kg7 {[%clk 0:00:04]} 25. Rxb7 {[%clk 0:00:12]}  a6 {[%clk 0:00:04]} 26. Rdd7 {[%clk 0:00:12]}  Rf8 {[%clk 0:00:04]} 27. Bd2 {[%clk 0:00:11]}  Bf6 {[%clk 0:00:04]} 28. c4 {[%clk 0:00:07]}  Nd4 {[%clk 0:00:04]} 29. Be3 {[%clk 0:00:07]}  Nf5 {[%clk 0:00:03]} 30. Bc5 {[%clk 0:00:06]}  Bg5+ {[%clk 0:00:01]} 31. Kb1 {[%clk 0:00:06]}  Re8 {[%clk 0:00:01]} 32. Rxf7+ {[%clk 0:00:06]}  Kh6 {[%clk 0:00:02]} 33. Rh7# {[%clk 0:00:05]} 1-0


[Site "https://www.chess.com"]

[Event "Titled Tuesday Blitz April 18 Early 2023"]
[White "Faci, Fadil"]
[Black "Elgersma, Onno"]
[WhiteFideId "4645162"]
[BlackFideId "1053531"]
[WhiteElo "2138"]
[BlackElo "2252"]
[Result "1/2-1/2"]
[Round "01"]
[TimeControl "180+2"]
[Date "2023.04.18"]
[WhiteClock "0:01:40"]
[BlackClock "0:01:04"]

1. e4 {[%clk 0:02:57]}  c6 {[%clk 0:03:00]} 2. d4 {[%clk 0:02:56]}  d5 {[%clk 0:03:00]} 3. Nc3 {[%clk 0:02:56]}  dxe4 {[%clk 0:03:01]} 4. Nxe4 {[%clk 0:02:57]}  Nf6 {[%clk 0:03:01]} 5. Nxf6+ {[%clk 0:02:57]}  exf6 {[%clk 0:03:02]} 6. Bf4 {[%clk 0:02:56]}  Bd6 {[%clk 0:02:58]} 7. Bxd6 {[%clk 0:02:56]}  Qxd6 {[%clk 0:02:59]} 8. Nf3 {[%clk 0:02:55]}  O-O {[%clk 0:02:59]} 9. Be2 {[%clk 0:02:55]}  Re8 {[%clk 0:03:00]} 10. O-O {[%clk 0:02:56]}  Bg4 {[%clk 0:03:01]} 11. c3 {[%clk 0:02:56]}  a5 {[%clk 0:03:01]} 12. h3 {[%clk 0:02:57]}  Bh5 {[%clk 0:03:01]} 13. Re1 {[%clk 0:02:56]}  Na6 {[%clk 0:03:00]} 14. Nh4 {[%clk 0:02:48]}  Bxe2 {[%clk 0:02:56]} 15. Rxe2 {[%clk 0:02:49]}  g6 {[%clk 0:02:56]} 16. Qc2 {[%clk 0:02:44]}  Rxe2 {[%clk 0:02:55]} 17. Qxe2 {[%clk 0:02:43]}  Nc7 {[%clk 0:02:55]} 18. Re1 {[%clk 0:02:42]}  Nd5 {[%clk 0:02:50]} 19. g3 {[%clk 0:02:39]}  Kg7 {[%clk 0:02:49]} 20. Qg4 {[%clk 0:02:36]}  Kh8 {[%clk 0:02:41]} 21. Ng2 {[%clk 0:02:32]}  f5 {[%clk 0:02:39]} 22. Qe2 {[%clk 0:02:31]}  Kg7 {[%clk 0:02:37]} 23. Qe5+ {[%clk 0:02:29]}  Qxe5 {[%clk 0:02:37]} 24. Rxe5 {[%clk 0:02:30]}  a4 {[%clk 0:02:37]} 25. a3 {[%clk 0:02:30]}  Ra6 {[%clk 0:02:34]} 26. Ne3 {[%clk 0:02:26]}  Nxe3 {[%clk 0:02:02]} 27. Rxe3 {[%clk 0:02:25]}  Rb6 {[%clk 0:02:03]} 28. Re2 {[%clk 0:02:25]}  Kf6 {[%clk 0:02:03]} 29. f4 {[%clk 0:02:25]}  h5 {[%clk 0:02:03]} 30. h4 {[%clk 0:02:23]}  Ra6 {[%clk 0:02:03]} 31. Kf2 {[%clk 0:02:22]}  Ra5 {[%clk 0:02:04]} 32. Ke3 {[%clk 0:02:21]}  Rd5 {[%clk 0:02:04]} 33. Kd3 {[%clk 0:02:22]}  Rb5 {[%clk 0:02:02]} 34. Kc2 {[%clk 0:02:07]}  Rd5 {[%clk 0:01:40]} 35. Re8 {[%clk 0:02:06]}  c5 {[%clk 0:01:35]} 36. Re5 {[%clk 0:01:59]}  Rxe5 {[%clk 0:01:25]} 37. dxe5+ {[%clk 0:02:00]}  Ke6 {[%clk 0:01:25]} 38. c4 {[%clk 0:01:50]}  Kd7 {[%clk 0:01:21]} 39. b3 {[%clk 0:01:45]}  axb3+ {[%clk 0:01:06]} 40. Kxb3 {[%clk 0:01:46]}  Kc6 {[%clk 0:01:07]} 41. Ka4 {[%clk 0:01:46]}  Kb6 {[%clk 0:01:07]} 42. Kb3 {[%clk 0:01:44]}  Ka5 {[%clk 0:01:07]} 43. a4 {[%clk 0:01:44]}  Ka6 {[%clk 0:01:07]} 44. Ka3 {[%clk 0:01:44]}  Kb6 {[%clk 0:01:08]} 45. Kb3 {[%clk 0:01:44]}  Ka5 {[%clk 0:01:08]} 46. Ka3 {[%clk 0:01:45]}  Ka6 {[%clk 0:01:06]} 47. Kb3 {[%clk 0:01:45]}  Ka7 {[%clk 0:01:04]} 48. a5 {[%clk 0:01:40]}  Ka6 {[%clk 0:01:02]} 49. Ka4 {[%clk 0:01:40]}  b6 {[%clk 0:01:03]} 50. axb6 {[%clk 0:01:40]}  Kxb6 {[%clk 0:01:04]} 51. Kb3 {[%clk 0:01:41]}  Ka5 {[%clk 0:01:04]} 52. Ka3 {[%clk 0:01:42]}  Ka6 {[%clk 0:01:04]} 53. Ka4 {[%clk 0:01:42]}  Kb6 {[%clk 0:01:05]} 54. Kb3 {[%clk 0:01:43]}  Kb7 {[%clk 0:01:03]} 55. Ka3 {[%clk 0:01:40]}  Ka6 {[%clk 0:01:04]} 56. Ka4 {[%clk 0:01:40]}  Kb6 {[%clk 0:01:04]} 1/2-1/2


[Site "https://www.chess.com"]

[Event "Titled Tuesday Blitz April 18 Early 2023"]
[White "Necula, Iulian"]
[Black "Aizpurua, Patrick Emilio"]
[WhiteFideId "1232380"]
[BlackFideId "6600522"]
[WhiteElo "1790"]
[BlackElo "2378"]
[Result "0-1"]
[Round "01"]
[TimeControl "180+2"]
[Date "2023.04.18"]
[WhiteClock "0:00:15"]
[BlackClock "0:01:49"]

1. d4 {[%clk 0:03:00]}  Nf6 {[%clk 0:02:59]} 2. Nc3 {[%clk 0:03:00]}  d5 {[%clk 0:02:59]} 3. Bf4 {[%clk 0:03:00]}  c6 {[%clk 0:02:59]} 4. e3 {[%clk 0:03:00]}  Bf5 {[%clk 0:02:59]} 5. Nf3 {[%clk 0:02:59]}  e6 {[%clk 0:02:59]} 6. Ne5 {[%clk 0:02:59]}  Nbd7 {[%clk 0:02:59]} 7. a3 {[%clk 0:02:58]}  h6 {[%clk 0:03:00]} 8. Bd3 {[%clk 0:02:44]}  Bxd3 {[%clk 0:02:59]} 9. cxd3 {[%clk 0:02:45]}  Qb6 {[%clk 0:02:58]} 10. Qc2 {[%clk 0:02:41]}  Rc8 {[%clk 0:02:58]} 11. O-O {[%clk 0:02:34]}  Be7 {[%clk 0:02:58]} 12. b4 {[%clk 0:02:30]}  Qa6 {[%clk 0:02:51]} 13. Qd2 {[%clk 0:02:25]}  Nxe5 {[%clk 0:02:46]} 14. dxe5 {[%clk 0:02:24]}  Nd7 {[%clk 0:02:46]} 15. d4 {[%clk 0:02:15]}  Nb6 {[%clk 0:02:46]} 16. Qe2 {[%clk 0:02:08]}  Nc4 {[%clk 0:02:46]} 17. e4 {[%clk 0:02:00]}  O-O {[%clk 0:02:45]} 18. exd5 {[%clk 0:01:59]}  cxd5 {[%clk 0:02:44]} 19. b5 {[%clk 0:01:59]}  Qa5 {[%clk 0:02:43]} 20. Rfc1 {[%clk 0:01:47]}  Nxa3 {[%clk 0:02:41]} 21. Qg4 {[%clk 0:01:30]}  Rxc3 {[%clk 0:02:35]} 22. Bxh6 {[%clk 0:01:28]}  g6 {[%clk 0:02:36]} 23. Bxf8 {[%clk 0:01:25]}  Bxf8 {[%clk 0:02:34]} 24. h4 {[%clk 0:01:14]}  Rxc1+ {[%clk 0:02:29]} 25. Rxc1 {[%clk 0:01:13]}  Qd2 {[%clk 0:02:29]} 26. Rc8 {[%clk 0:01:09]}  Nxb5 {[%clk 0:02:20]} 27. h5 {[%clk 0:01:08]}  Qxd4 {[%clk 0:02:20]} 28. Qg5 {[%clk 0:01:07]}  Qd1+ {[%clk 0:02:19]} 29. Kh2 {[%clk 0:01:07]}  Qxh5+ {[%clk 0:02:20]} 30. Qxh5 {[%clk 0:01:07]}  gxh5 {[%clk 0:02:21]} 31. Rb8 {[%clk 0:01:03]}  b6 {[%clk 0:02:20]} 32. Kg3 {[%clk 0:00:55]}  Kg7 {[%clk 0:02:18]} 33. Kh4 {[%clk 0:00:55]}  Bc5 {[%clk 0:02:18]} 34. f3 {[%clk 0:00:52]}  Bd4 {[%clk 0:02:18]} 35. Kxh5 {[%clk 0:00:51]}  Bxe5 {[%clk 0:02:18]} 36. Rb7 {[%clk 0:00:47]}  Bd4 {[%clk 0:02:16]} 37. g4 {[%clk 0:00:46]}  a5 {[%clk 0:02:01]} 38. g5 {[%clk 0:00:45]}  Nd6 {[%clk 0:02:01]} 39. Ra7 {[%clk 0:00:42]}  Ne8 {[%clk 0:02:00]} 40. g6 {[%clk 0:00:41]}  Nf6+ {[%clk 0:01:58]} 41. Kg5 {[%clk 0:00:40]}  Be3+ {[%clk 0:01:59]} 42. f4 {[%clk 0:00:40]}  Bxf4+ {[%clk 0:01:55]} 43. Kxf4 {[%clk 0:00:40]}  Kxg6 {[%clk 0:01:56]} 44. Rb7 {[%clk 0:00:36]}  a4 {[%clk 0:01:52]} 45. Rxb6 {[%clk 0:00:35]}  e5+ {[%clk 0:01:52]} 46. Kf3 {[%clk 0:00:31]}  Kf5 {[%clk 0:01:51]} 47. Ra6 {[%clk 0:00:29]}  e4+ {[%clk 0:01:51]} 48. Ke2 {[%clk 0:00:29]}  d4 {[%clk 0:01:50]} 49. Rxa4 {[%clk 0:00:29]}  Ke5 {[%clk 0:01:51]} 50. Ra7 {[%clk 0:00:27]}  d3+ {[%clk 0:01:51]} 51. Kd2 {[%clk 0:00:25]}  Ke6 {[%clk 0:01:51]} 52. Ra6+ {[%clk 0:00:25]}  Kf5 {[%clk 0:01:50]} 53. Ra7 {[%clk 0:00:24]}  Kg6 {[%clk 0:01:48]} 54. Ra6 {[%clk 0:00:23]}  Kg5 {[%clk 0:01:46]} 55. Ra5+ {[%clk 0:00:22]}  Kf4 {[%clk 0:01:46]} 56. Ra7 {[%clk 0:00:22]}  Ke5 {[%clk 0:01:46]} 57. Rxf7 {[%clk 0:00:20]}  Nd5 {[%clk 0:01:46]} 58. Rf8 {[%clk 0:00:19]}  Kd4 {[%clk 0:01:47]} 59. Rd8 {[%clk 0:00:19]}  e3+ {[%clk 0:01:47]} 60. Ke1 {[%clk 0:00:18]}  Ke4 {[%clk 0:01:46]} 61. Re8+ {[%clk 0:00:18]}  Kd4 {[%clk 0:01:46]} 62. Rd8 {[%clk 0:00:18]}  Kc4 {[%clk 0:01:46]} 63. Rc8+ {[%clk 0:00:19]}  Kb3 {[%clk 0:01:47]} 64. Rb8+ {[%clk 0:00:19]}  Kc2 {[%clk 0:01:47]} 65. Rc8+ {[%clk 0:00:19]}  Nc3 {[%clk 0:01:48]} 66. Rd8 {[%clk 0:00:17]}  d2+ {[%clk 0:01:48]} 67. Kf1 {[%clk 0:00:16]}  d1=Q+ {[%clk 0:01:48]} 68. Rxd1 {[%clk 0:00:15]}  Kxd1 {[%clk 0:01:49]} 0-1


[Site "https://www.chess.com"]

[Event "Titled Tuesday Blitz April 18 Early 2023"]
[White "Mihajlovskij"]
[Black "Shohat, Yotam"]
[BlackFideId "2813955"]
[WhiteElo "2100"]
[BlackElo "2226"]
[Result "0-1"]
[Round "01"]
[TimeControl "180+2"]
[Date "2023.04.18"]
[WhiteClock "0:00:05"]
[BlackClock "0:00:05"]

1. e4 {[%clk 0:02:55]}  g6 {[%clk 0:02:56]} 2. d4 {[%clk 0:02:54]}  Nf6 {[%clk 0:02:56]} 3. Nc3 {[%clk 0:02:44]}  d5 {[%clk 0:02:55]} 4. e5 {[%clk 0:02:37]}  Ne4 {[%clk 0:02:55]} 5. Nxe4 {[%clk 0:02:33]}  dxe4 {[%clk 0:02:55]} 6. c3 {[%clk 0:02:34]}  Bg7 {[%clk 0:02:55]} 7. Be3 {[%clk 0:02:32]}  c5 {[%clk 0:02:54]} 8. f4 {[%clk 0:02:28]}  cxd4 {[%clk 0:02:45]} 9. Qxd4 {[%clk 0:02:26]}  Qxd4 {[%clk 0:02:41]} 10. cxd4 {[%clk 0:02:25]}  Be6 {[%clk 0:02:25]} 11. Bb5+ {[%clk 0:02:21]}  Nc6 {[%clk 0:02:24]} 12. O-O-O {[%clk 0:02:18]}  O-O-O {[%clk 0:02:23]} 13. Kb1 {[%clk 0:02:15]}  Nb4 {[%clk 0:02:19]} 14. a3 {[%clk 0:02:11]}  Nd5 {[%clk 0:02:19]} 15. Bc1 {[%clk 0:02:08]}  Kb8 {[%clk 0:02:05]} 16. Ne2 {[%clk 0:02:08]}  f5 {[%clk 0:01:53]} 17. Nc3 {[%clk 0:01:57]}  Rc8 {[%clk 0:01:44]} 18. Nxd5 {[%clk 0:01:51]}  Bxd5 {[%clk 0:01:45]} 19. Rhe1 {[%clk 0:01:49]}  a6 {[%clk 0:01:42]} 20. Bd7 {[%clk 0:01:47]}  Rc7 {[%clk 0:01:41]} 21. Ba4 {[%clk 0:01:42]}  b5 {[%clk 0:01:40]} 22. Bc2 {[%clk 0:01:42]}  Rhc8 {[%clk 0:01:39]} 23. Re2 {[%clk 0:01:42]}  e6 {[%clk 0:01:28]} 24. b4 {[%clk 0:01:36]}  Bf8 {[%clk 0:01:10]} 25. Bb2 {[%clk 0:01:32]}  Kb7 {[%clk 0:01:04]} 26. Rc1 {[%clk 0:01:28]}  Rc4 {[%clk 0:01:04]} 27. g3 {[%clk 0:01:12]}  Kb6 {[%clk 0:01:00]} 28. Re3 {[%clk 0:01:09]}  a5 {[%clk 0:00:56]} 29. bxa5+ {[%clk 0:01:08]}  Kxa5 {[%clk 0:00:57]} 30. Bb3 {[%clk 0:01:08]}  Rxc1+ {[%clk 0:00:55]} 31. Bxc1 {[%clk 0:01:09]}  Bxb3 {[%clk 0:00:24]} 32. Rxb3 {[%clk 0:01:10]}  Ka4 {[%clk 0:00:24]} 33. Re3 {[%clk 0:01:02]}  Be7 {[%clk 0:00:20]} 34. Bb2 {[%clk 0:01:02]}  Bd8 {[%clk 0:00:17]} 35. Re2 {[%clk 0:00:55]}  Bb6 {[%clk 0:00:13]} 36. g4 {[%clk 0:00:48]}  Rd8 {[%clk 0:00:09]} 37. gxf5 {[%clk 0:00:45]}  gxf5 {[%clk 0:00:08]} 38. Rd2 {[%clk 0:00:40]}  e3 {[%clk 0:00:08]} 39. Rd3 {[%clk 0:00:35]}  e2 {[%clk 0:00:08]} 40. Re3 {[%clk 0:00:36]}  Bxd4 {[%clk 0:00:05]} 41. Rxe2 {[%clk 0:00:35]}  Bxb2 {[%clk 0:00:03]} 42. Kxb2 {[%clk 0:00:35]}  Rd4 {[%clk 0:00:03]} 43. Rf2 {[%clk 0:00:34]}  Re4 {[%clk 0:00:03]} 44. h4 {[%clk 0:00:33]}  h5 {[%clk 0:00:03]} 45. Rg2 {[%clk 0:00:25]}  Rxf4 {[%clk 0:00:03]} 46. Rg6 {[%clk 0:00:25]}  Rf2+ {[%clk 0:00:03]} 47. Kc3 {[%clk 0:00:25]}  Kxa3 {[%clk 0:00:03]} 48. Rxe6 {[%clk 0:00:26]}  b4+ {[%clk 0:00:03]} 49. Kc4 {[%clk 0:00:24]}  Rc2+ {[%clk 0:00:03]} 50. Kd3 {[%clk 0:00:25]}  b3 {[%clk 0:00:04]} 51. Ra6+ {[%clk 0:00:25]}  Kb2 {[%clk 0:00:04]} 52. e6 {[%clk 0:00:25]}  Rc1 {[%clk 0:00:03]} 53. Kd2 {[%clk 0:00:22]}  Rc5 {[%clk 0:00:03]} 54. Kd3 {[%clk 0:00:14]}  Re5 {[%clk 0:00:04]} 55. Kd4 {[%clk 0:00:15]}  Re1 {[%clk 0:00:04]} 56. Kd3 {[%clk 0:00:15]}  f4 {[%clk 0:00:04]} 57. Kd2 {[%clk 0:00:06]}  Re5 {[%clk 0:00:03]} 58. Ra4 {[%clk 0:00:05]}  Rxe6 {[%clk 0:00:03]} 59. Rxf4 {[%clk 0:00:05]}  Rd6+ {[%clk 0:00:03]} 60. Ke1 {[%clk 0:00:05]}  Kc2 {[%clk 0:00:02]} 61. Rf2+ {[%clk 0:00:05]}  Kb1 {[%clk 0:00:02]} 62. Rf5 {[%clk 0:00:04]}  b2 {[%clk 0:00:03]} 63. Rxh5 {[%clk 0:00:04]}  Rc6 {[%clk 0:00:03]} 64. Kd2 {[%clk 0:00:04]}  Rd6+ {[%clk 0:00:02]} 65. Ke1 {[%clk 0:00:04]}  Rd4 {[%clk 0:00:02]} 66. Ke2 {[%clk 0:00:03]}  Kc2 {[%clk 0:00:03]} 67. Ke3 {[%clk 0:00:03]}  Rc4 {[%clk 0:00:02]} 68. Rb5 {[%clk 0:00:02]}  b1=Q {[%clk 0:00:03]} 69. Rxb1 {[%clk 0:00:03]}  Kxb1 {[%clk 0:00:04]} 70. h5 {[%clk 0:00:03]}  Rh4 {[%clk 0:00:04]} 71. Kf3 {[%clk 0:00:04]}  Rxh5 {[%clk 0:00:04]} 72. Kg4 {[%clk 0:00:05]}  Ra5 {[%clk 0:00:05]} 0-1


[Site "https://www.chess.com"]